[Event "South Island Championships 2023"]
[Site "Oamaru, New Zealand"]
[Date "????.??.??"]
[Round "4.1"]
[White "Johnson, Quentin J F"]
[Black "Stark, John"]
[Result "1/2-1/2"]
[TimeControl "90 + 30"]
[WhiteFideId "4301480"]
[BlackFideId "4300963"]
[WhiteElo "2089"]
[BlackElo "2204"]

1. d4 {[%clk 01:29:45]} {[%emt 00:01:14]} Nf6 {[%clk 01:30:55]} {[%emt
00:00:06]} 2. c4 {[%clk 01:30:07]} {[%emt 00:00:08]} e6 {[%clk 01:31:21]}
{[%emt 00:00:04]} 3. Nc3 {[%clk 01:30:34]} {[%emt 00:00:03]} Bb4 {[%clk
01:31:30]} {[%emt 00:00:22]} 4. Bd2 {[%clk 01:30:56]} {[%emt 00:00:08]} b6
{[%clk 01:26:54]} {[%emt 00:05:06]} 5. Nf3 {[%clk 01:31:12]} {[%emt 00:00:13]}
Bb7 {[%clk 01:26:52]} {[%emt 00:00:32]} 6. e3 {[%clk 01:31:35]} {[%emt
00:00:07]} O-O {[%clk 01:24:26]} {[%emt 00:02:56]} 7. Bd3 {[%clk 01:31:57]}
{[%emt 00:00:08]} Bxc3 {[%clk 01:24:42]} {[%emt 00:00:15]} 8. Bxc3 {[%clk
01:32:19]} {[%emt 00:00:07]} Ne4 {[%clk 01:25:07]} {[%emt 00:00:05]} 9. Bb4
{[%clk 01:25:45]} {[%emt 00:07:04]} d6 {[%clk 01:21:50]} {[%emt 00:03:47]} 10.
O-O {[%clk 01:25:46]} {[%emt 00:00:29]} a5 {[%clk 01:19:08]} {[%emt 00:03:12]}
11. Be1 {[%clk 01:26:02]} {[%emt 00:00:13]} Nd7 {[%clk 01:19:19]} {[%emt
00:00:20]} 12. Nd2 {[%clk 01:26:15]} {[%emt 00:00:17]} Nxd2 {[%clk 01:12:38]}
{[%emt 00:07:10]} 13. Bxd2 {[%clk 01:22:24]} {[%emt 00:04:21]} f5 {[%clk
01:10:33]} {[%emt 00:02:35]} 14. f3 {[%clk 01:21:44]} {[%emt 00:01:10]} Qf6
{[%clk 00:59:12]} {[%emt 00:11:52]} 15. Bc3 {[%clk 01:16:15]} {[%emt 00:05:57]}
Qg5 {[%clk 00:58:59]} {[%emt 00:00:43]} 16. Qd2 {[%clk 01:15:11]} {[%emt
00:01:34]} Nf6 {[%clk 00:51:24]} {[%emt 00:08:06]} 17. Rae1 {[%clk 01:15:07]}
{[%emt 00:00:34]} Nh5 {[%clk 00:47:26]} {[%emt 00:04:28]} 18. e4 {[%clk
00:56:15]} {[%emt 00:19:22]} f4 {[%clk 00:41:49]} {[%emt 00:06:07]} 19. e5
{[%clk 00:52:14]} {[%emt 00:04:31]} Qh4 {[%clk 00:27:35]} {[%emt 00:14:44]} 20.
d5 {[%clk 00:36:42]} {[%emt 00:16:02]} Ng3 {[%clk 00:25:16]} {[%emt 00:02:49]}
21. Rf2 {[%clk 00:32:08]} {[%emt 00:05:04]} dxe5 {[%clk 00:21:02]} {[%emt
00:04:44]} 22. Bxe5 {[%clk 00:25:29]} {[%emt 00:07:09]} exd5 {[%clk 00:21:09]}
{[%emt 00:00:23]} 23. Bxc7 {[%clk 00:20:55]} {[%emt 00:05:04]} Rf6 {[%clk
00:19:46]} {[%emt 00:01:53]} 24. hxg3 {[%clk 00:20:08]} {[%emt 00:01:17]} fxg3
{[%clk 00:16:07]} {[%emt 00:04:09]} 25. Bxg3 {[%clk 00:20:25]} {[%emt
00:00:12]} Qxg3 {[%clk 00:16:35]} {[%emt 00:00:02]} 26. cxd5 {[%clk 00:20:30]}
{[%emt 00:00:25]} Rh6 {[%clk 00:11:48]} {[%emt 00:05:18]} 27. Bb5 {[%clk
00:16:11]} {[%emt 00:04:49]} Rd8 {[%clk 00:08:38]} {[%emt 00:03:40]} 28. Re7
{[%clk 00:06:25]} {[%emt 00:10:16]} Qh4 {[%clk 00:07:14]} {[%emt 00:01:54]} 29.
Rfe2 {[%clk 00:06:49]} {[%emt 00:00:06]} Qh1+ {[%clk 00:06:21]} {[%emt
00:01:22]} 30. Kf2 {[%clk 00:07:17]} {[%emt 00:00:03]} Qh4+ {[%clk 00:06:46]}
{[%emt 00:00:05]} 31. g3 {[%clk 00:04:22]} {[%emt 00:03:25]} Qh2+ {[%clk
00:05:49]} {[%emt 00:01:27]} 32. Ke3 {[%clk 00:04:43]} {[%emt 00:00:09]} Qxg3
{[%clk 00:05:57]} {[%emt 00:00:22]} 33. Rxb7 {[%clk 00:05:04]} {[%emt
00:00:09]} Qe5+ {[%clk 00:01:52]} {[%emt 00:04:34]} 34. Kf2 {[%clk 00:03:08]}
{[%emt 00:02:26]} Qh2+ {[%clk 00:00:51]} {[%emt 00:01:31]} 35. Kf1 {[%clk
00:02:06]} {[%emt 00:01:32]} Qh1+ {[%clk 00:00:38]} {[%emt 00:00:44]} 36. Kf2
{[%clk 00:02:33]} {[%emt 00:00:04]} Qh4+ {[%clk 00:00:34]} {[%emt 00:00:33]} 37.
Kf1 {[%clk 00:02:07]} {[%emt 00:00:56]} Qh1+ {[%clk 00:00:35]} {[%emt
00:00:29]} 38. Kf2 {[%clk 00:02:33]} {[%emt 00:00:04]} Qh4+ {[%clk 00:00:32]}
{[%emt 00:00:33]} 39. Kf1 {[%clk 00:02:23]} {[%emt 00:00:40]} Qh1+ {[%clk
00:00:33]} {[%emt 00:00:30]} 40. Kf2 {[%clk 00:01:54]} {[%emt 00:00:23]}
1/2-1/2

[Event "South Island Championships 2023"]
[Site "Oamaru, New Zealand"]
[Date "????.??.??"]
[Round "4.4"]
[White "Cummings, Nick"]
[Black "Zhang, Kendrick Botong"]
[Result "1/2-1/2"]
[TimeControl "90 + 30"]
[WhiteFideId "4301218"]
[BlackFideId "4307704"]
[WhiteElo "2094"]
[BlackElo "2067"]

1. Nc3 {[%clk 01:30:58]} {[%emt 00:00:01]} d5 {[%clk 01:29:14]} {[%emt
00:01:47]} 2. e4 {[%clk 01:31:13]} {[%emt 00:00:15]} d4 {[%clk 01:26:01]}
{[%emt 00:03:42]} 3. Nce2 {[%clk 01:31:40]} {[%emt 00:00:03]} c5 {[%clk
01:15:42]} {[%emt 00:10:50]} 4. Ng3 {[%clk 01:31:20]} {[%emt 00:00:49]} Nc6
{[%clk 01:14:16]} {[%emt 00:01:56]} 5. Nf3 {[%clk 01:30:47]} {[%emt 00:01:03]}
e5 {[%clk 01:07:48]} {[%emt 00:06:58]} 6. Bb5 {[%emt 00:10:21]} Bd6 {[%clk
01:03:05]} {[%emt 00:00:33]} 7. c3 {[%clk 01:10:24]} {[%emt 00:15:42]} Nge7
{[%clk 01:01:00]} {[%emt 00:02:35]} 8. d3 {[%clk 01:08:40]} {[%emt 00:02:14]}
a6 {[%clk 00:56:40]} {[%emt 00:04:50]} 9. Bxc6+ {[%clk 01:02:49]} {[%emt
00:06:21]} Nxc6 {[%clk 00:55:49]} {[%emt 00:01:20]} 10. Nd2 {[%clk 00:49:57]}
{[%emt 00:13:22]} Be6 {[%clk 00:51:39]} {[%emt 00:04:41]} 11. c4 {[%clk
00:36:07]} {[%emt 00:14:19]} b5 {[%clk 00:49:12]} {[%emt 00:02:58]} 12. O-O
{[%clk 00:35:51]} {[%emt 00:00:46]} O-O {[%clk 00:46:37]} {[%emt 00:03:05]} 13.
Nh1 {[%clk 00:26:47]} {[%emt 00:09:35]} Nb4 {[%clk 00:41:39]} {[%emt 00:05:28]}
14. Qe2 {[%clk 00:24:10]} {[%emt 00:03:06]} bxc4 {[%clk 00:40:33]} {[%emt
00:01:36]} 15. Nxc4 {[%clk 00:24:38]} {[%emt 00:00:02]} Bxc4 {[%clk 00:38:39]}
{[%emt 00:02:24]} 16. dxc4 {[%clk 00:24:19]} {[%emt 00:00:49]} Be7 {[%clk
00:34:13]} {[%emt 00:04:55]} 17. Qg4 {[%clk 00:21:52]} {[%emt 00:02:57]} Qc8
{[%clk 00:30:32]} {[%emt 00:04:12]} 18. Qxc8 {[%clk 00:20:04]} {[%emt
00:02:19]} Raxc8 {[%clk 00:30:32]} {[%emt 00:00:29]} 19. Bd2 {[%clk 00:19:22]}
{[%emt 00:01:10]} Rb8 {[%clk 00:29:32]} {[%emt 00:01:32]} 20. f3 {[%clk
00:18:52]} {[%emt 00:00:59]} a5 {[%clk 00:28:42]} {[%emt 00:01:19]} 21. Nf2
{[%clk 00:18:21]} {[%emt 00:01:02]} Bd6 {[%clk 00:22:19]} {[%emt 00:06:53]} 22.
Rfc1 {[%clk 00:18:07]} {[%emt 00:00:44]} Rb7 {[%clk 00:20:54]} {[%emt
00:01:57]} 23. Kf1 {[%clk 00:16:28]} {[%emt 00:02:08]} Rfb8 {[%clk 00:19:29]}
{[%emt 00:01:55]} 24. a4 {[%clk 00:11:35]} {[%emt 00:05:23]} g6 {[%clk
00:17:18]} {[%emt 00:02:41]} 25. Bxb4 {[%clk 00:07:13]} {[%emt 00:04:52]} Rxb4
{[%clk 00:17:39]} {[%emt 00:00:09]} 26. Nd3 {[%clk 00:07:40]} {[%emt 00:00:03]}
Rb3 {[%clk 00:17:57]} {[%emt 00:00:12]} 27. Ke2 {[%clk 00:07:56]} {[%emt
00:00:13]} f5 {[%clk 00:17:29]} {[%emt 00:00:58]} 28. Rab1 {[%clk 00:05:37]}
{[%emt 00:02:49]} Kf7 {[%clk 00:17:31]} {[%emt 00:00:29]} 29. Rf1 {[%clk
00:05:30]} {[%emt 00:00:35]} Ke6 {[%clk 00:17:18]} {[%emt 00:00:45]} 30. g4
{[%clk 00:04:37]} {[%emt 00:01:22]} R3b7 {[%clk 00:14:48]} {[%emt 00:03:02]} 31.
Rg1 {[%clk 00:04:58]} {[%emt 00:00:07]} Rf8 {[%clk 00:12:43]} {[%emt 00:02:35]}
32. gxf5+ {[%clk 00:05:06]} {[%emt 00:00:23]} gxf5 {[%clk 00:13:06]} {[%emt
00:00:07]} 33. Rg2 {[%clk 00:04:44]} {[%emt 00:00:51]} Rbf7 {[%clk 00:12:30]}
{[%emt 00:01:06]} 34. Rbg1 {[%clk 00:05:04]} {[%emt 00:00:10]} fxe4 {[%clk
00:11:27]} {[%emt 00:01:34]} 35. fxe4 {[%clk 00:05:32]} {[%emt 00:00:03]} Rf3
{[%clk 00:11:44]} {[%emt 00:00:12]} 36. Rg3 {[%clk 00:05:42]} {[%emt 00:00:20]}
R3f6 {[%clk 00:07:49]} {[%emt 00:04:25]} 37. Rg7 {[%clk 00:05:39]} {[%emt
00:00:32]} Rh6 {[%clk 00:05:32]} {[%emt 00:02:47]} 38. R1g2 {[%clk 00:05:55]}
{[%emt 00:00:14]} Rff6 {[%clk 00:03:45]} {[%emt 00:02:18]} 39. R7g3 {[%clk
00:05:30]} {[%emt 00:00:52]} Rh4 {[%clk 00:03:48]} {[%emt 00:00:30]} 40. Rg4
{[%clk 00:05:32]} {[%emt 00:00:27]} Rh3 {[%clk 00:03:13]} {[%emt 00:01:07]} 41.
R4g3 {[%clk 00:05:48]} {[%emt 00:00:14]} Rfh6 {[%clk 00:03:14]} {[%emt
00:00:28]} 42. Rxh3 {[%clk 00:05:54]} {[%emt 00:00:24]} Rxh3 {[%clk 00:03:39]}
{[%emt 00:00:05]} 43. Nf2 {[%clk 00:06:14]} {[%emt 00:00:10]} Re3+ {[%clk
00:03:15]} {[%emt 00:00:54]} 44. Kd2 {[%clk 00:06:29]} {[%emt 00:00:14]} Be7
{[%clk 00:02:48]} {[%emt 00:00:57]} 45. Rg3 {[%clk 00:06:32]} {[%emt 00:00:28]}
Rxg3 {[%clk 00:00:44]} {[%emt 00:02:33]} 46. hxg3 {[%clk 00:06:58]} {[%emt
00:00:05]} h5 {[%clk 00:00:32]} {[%emt 00:00:42]} 47. Ke2 {[%clk 00:07:17]}
{[%emt 00:00:11]} Kf6 {[%clk 00:00:31]} {[%emt 00:00:31]} 48. Nd3 {[%clk
00:07:14]} {[%emt 00:00:30]} Bd6 {[%clk 00:00:39]} {[%emt 00:00:24]} 49. Kf3
{[%clk 00:07:11]} {[%emt 00:00:34]} Bf8 {[%clk 00:00:34]} {[%emt 00:00:35]} 50.
Nc1 {[%clk 00:07:07]} {[%emt 00:00:33]} Ke6 {[%clk 00:00:33]} {[%emt 00:00:31]}
51. Nd3 {[%clk 00:05:27]} {[%emt 00:02:10]} Be7 {[%clk 00:00:46]} {[%emt
00:00:18]} 52. Kg2 {[%clk 00:05:24]} {[%emt 00:00:31]} Kd6 {[%clk 00:00:45]}
{[%emt 00:00:33]} 53. Kh3 {[%clk 00:05:39]} {[%emt 00:00:14]} Bg5 {[%clk
00:00:34]} {[%emt 00:00:42]} 54. Kg2 {[%clk 00:03:44]} {[%emt 00:02:25]} Bd8
{[%clk 00:00:31]} {[%emt 00:00:33]} 55. b3 {[%clk 00:03:39]} {[%emt 00:00:36]}
Be7 {[%clk 00:00:47]} {[%emt 00:00:13]} 56. Ne1 {[%clk 00:03:36]} {[%emt
00:00:33]} Ke6 {[%clk 00:01:01]} {[%emt 00:00:16]} 57. Kf3 {[%clk 00:03:01]}
{[%emt 00:00:53]} Kf6 {[%clk 00:01:21]} {[%emt 00:00:22]} 58. Nd3 {[%clk
00:03:24]} {[%emt 00:00:07]} Bf8 {[%clk 00:01:27]} {[%emt 00:00:24]} 59. Ne1
{[%clk 00:03:12]} {[%emt 00:00:39]} Kg5 {[%clk 00:01:52]} {[%emt 00:00:08]} 60.
Nd3 {[%clk 00:03:32]} {[%emt 00:00:10]} Bd6 {[%clk 00:02:13]} {[%emt 00:00:09]}
61. Nf2 {[%clk 00:02:44]} {[%emt 00:01:18]} h4 {[%clk 00:00:41]} {[%emt
00:02:02]} 62. Nh3+ {[%clk 00:02:54]} {[%emt 00:00:19]} Kh5 {[%clk 00:00:59]}
{[%emt 00:00:13]} 63. gxh4 {[%clk 00:02:32]} {[%emt 00:00:52]} Kxh4 {[%clk
00:01:17]} {[%emt 00:00:12]} 64. Nf2 {[%clk 00:02:58]} {[%emt 00:00:04]} Bf8
{[%clk 00:01:14]} {[%emt 00:00:32]} 65. Nd3 {[%clk 00:03:22]} {[%emt 00:00:07]}
Bd6 {[%clk 00:01:39]} {[%emt 00:00:05]} 66. Nf2 {[%clk 00:03:30]} {[%emt
00:00:22]} Be7 {[%clk 00:01:38]} {[%emt 00:00:31]} 1/2-1/2

[Event "South Island Championships 2023"]
[Site "Oamaru, New Zealand"]
[Date "????.??.??"]
[Round "4.9"]
[White "Tao, Junqing Jerome"]
[Black "Kerr, Atlas"]
[Result "0-1"]
[TimeControl "90 + 30"]
[WhiteFideId "4313895"]
[BlackFideId "4319486"]
[WhiteElo "1634"]
[BlackElo "1853"]

1. e4 {[%clk 01:30:59]} g6 {[%clk 01:30:05]} {[%emt 00:00:56]} 2. d4 {[%clk
01:31:24]} {[%emt 00:00:05]} Bg7 {[%clk 01:30:23]} {[%emt 00:00:11]} 3. Nf3
{[%clk 01:31:48]} {[%emt 00:00:06]} d6 {[%clk 01:30:12]} {[%emt 00:00:42]} 4.
Bc4 {[%clk 01:32:06]} {[%emt 00:00:11]} Nf6 {[%clk 01:28:56]} {[%emt 00:01:47]}
5. Nc3 {[%clk 01:32:27]} {[%emt 00:00:08]} O-O {[%clk 01:28:07]} {[%emt
00:01:19]} 6. h3 {[%clk 01:32:53]} {[%emt 00:00:04]} Nbd7 {[%clk 01:25:50]}
{[%emt 00:02:48]} 7. O-O {[%clk 01:33:10]} {[%emt 00:00:13]} c5 {[%clk
01:25:02]} {[%emt 00:01:17]} 8. Be3 {[%clk 01:33:02]} {[%emt 00:00:37]} Nb6
{[%clk 01:20:40]} {[%emt 00:04:53]} 9. Bb3 {[%clk 01:33:24]} {[%emt 00:00:09]}
c4 {[%clk 01:20:55]} {[%emt 00:00:15]} 10. d5 {[%clk 01:33:30]} {[%emt
00:00:23]} cxb3 {[%clk 01:21:06]} {[%emt 00:00:19]} 11. axb3 {[%clk 01:33:56]}
{[%emt 00:00:05]} e6 {[%clk 01:15:25]} {[%emt 00:06:10]} 12. dxe6 {[%clk
01:33:54]} {[%emt 00:00:32]} Bxe6 {[%clk 01:15:36]} {[%emt 00:00:20]} 13. e5
{[%clk 01:33:49]} {[%emt 00:00:35]} Nfd5 {[%clk 01:10:52]} {[%emt 00:05:14]} 14.
Bxb6 {[%clk 01:33:42]} {[%emt 00:00:36]} Nxb6 {[%clk 01:11:03]} {[%emt
00:00:19]} 15. exd6 {[%clk 01:34:07]} {[%emt 00:00:06]} a6 {[%clk 01:10:05]}
{[%emt 00:01:29]} 16. Qd2 {[%clk 01:34:12]} {[%emt 00:00:24]} Qd7 {[%clk
01:04:31]} {[%emt 00:06:04]} 17. Rad1 {[%clk 01:34:17]} {[%emt 00:00:23]} Rfd8
{[%clk 00:59:09]} {[%emt 00:05:54]} 18. Rfe1 {[%clk 01:34:10]} {[%emt
00:00:37]} Rac8 {[%clk 00:49:28]} {[%emt 00:10:11]} 19. Ng5 {[%clk 01:33:55]}
{[%emt 00:00:44]} Rc6 {[%clk 00:46:29]} {[%emt 00:03:30]} 20. Nxe6 {[%clk
01:33:45]} {[%emt 00:00:40]} fxe6 {[%clk 00:46:53]} {[%emt 00:00:05]} 21. Qe3
{[%clk 01:33:55]} {[%emt 00:00:20]} e5 {[%clk 00:44:41]} {[%emt 00:02:42]} 22.
Ne4 {[%clk 01:34:07]} {[%emt 00:00:18]} Qf7 {[%clk 00:39:37]} {[%emt 00:05:34]}
23. Qg5 {[%clk 01:32:43]} {[%emt 00:01:54]} Rd7 {[%clk 00:37:01]} {[%emt
00:03:07]} 24. c4 {[%clk 01:32:26]} {[%emt 00:00:47]} Nc8 {[%clk 00:35:48]}
{[%emt 00:01:43]} 25. Qh4 {[%clk 01:32:14]} {[%emt 00:00:40]} h6 {[%clk
00:35:34]} {[%emt 00:00:46]} 26. c5 {[%clk 01:31:56]} {[%emt 00:00:47]} Na7
{[%clk 00:29:38]} {[%emt 00:06:26]} 27. Rd3 {[%clk 01:32:13]} {[%emt 00:00:13]}
g5 {[%clk 00:28:53]} {[%emt 00:01:15]} 28. Qg4 {[%clk 01:32:28]} {[%emt
00:00:15]} Rd8 {[%clk 00:28:24]} {[%emt 00:01:00]} 29. Rf3 {[%clk 01:32:37]}
{[%emt 00:00:20]} Qg6 {[%clk 00:27:37]} {[%emt 00:01:16]} 30. h4 {[%clk
01:31:44]} {[%emt 00:01:25]} Nb5 {[%clk 00:26:15]} {[%emt 00:01:52]} 31. hxg5
{[%clk 01:30:14]} {[%emt 00:01:59]} h5 {[%clk 00:26:00]} {[%emt 00:00:45]} 32.
Qg3 {[%clk 01:28:54]} {[%emt 00:01:50]} Nd4 {[%emt 00:00:33]} 33. Rd3 {[%clk
01:28:08]} {[%emt 00:01:14]} Rf8 {[%clk 00:21:45]} {[%emt 00:04:44]} 34. Nf6+
{[%clk 01:27:39]} {[%emt 00:00:59]} Bxf6 {[%clk 00:20:37]} {[%emt 00:01:38]} 35.
gxf6 {[%clk 01:28:00]} {[%emt 00:00:09]} Qxg3 {[%clk 00:20:50]} {[%emt
00:00:17]} 36. Rxg3+ {[%clk 01:28:26]} {[%emt 00:00:04]} Kf7 {[%clk 00:21:07]}
{[%emt 00:00:14]} 37. Rxe5 {[%clk 01:28:44]} {[%emt 00:00:11]} Kxf6 {[%emt
00:00:51]} 38. Rd5 {[%clk 01:29:12]} Ne2+ {[%emt 00:00:23]} 39. Kh2 {[%clk
01:29:39]} {[%emt 00:00:02]} Nxg3 {[%clk 00:21:15]} {[%emt 00:00:11]} 40. Kxg3
{[%clk 01:30:06]} {[%emt 00:00:02]} Rh8 {[%clk 00:15:29]} {[%emt 00:06:16]} 41.
b4 {[%clk 01:29:46]} {[%emt 00:00:51]} Ke6 {[%clk 00:13:17]} {[%emt 00:02:42]}
42. Rg5 {[%clk 01:30:06]} {[%emt 00:00:09]} Rcc8 {[%clk 00:13:39]} {[%emt
00:00:08]} 43. Rg7 {[%clk 01:30:07]} {[%emt 00:00:28]} Rcg8 {[%clk 00:13:34]}
{[%emt 00:00:36]} 44. Rxg8 {[%clk 01:30:25]} {[%emt 00:00:12]} Rxg8+ {[%clk
00:13:58]} {[%emt 00:00:07]} 45. Kf3 {[%clk 01:30:52]} {[%emt 00:00:03]} Rg4
{[%clk 00:14:17]} {[%emt 00:00:10]} 46. b3 {[%clk 01:31:03]} {[%emt 00:00:19]}
Rxb4 {[%clk 00:14:42]} {[%emt 00:00:06]} 47. Kg3 {[%clk 01:31:32]} Rxb3+ {[%clk
00:14:38]} {[%emt 00:00:33]} 48. Kh4 {[%clk 01:31:58]} {[%emt 00:00:04]} a5
{[%clk 00:15:00]} {[%emt 00:00:08]} 49. Kxh5 {[%clk 01:32:24]} {[%emt
00:00:03]} a4 {[%clk 00:14:34]} {[%emt 00:00:57]} 50. g4 {[%clk 01:32:51]}
{[%emt 00:00:03]} a3 {[%clk 00:14:36]} {[%emt 00:00:28]} 51. g5 {[%clk
01:33:18]} {[%emt 00:00:03]} a2 {[%clk 00:14:54]} {[%emt 00:00:12]} 52. g6
{[%clk 01:33:45]} {[%emt 00:00:03]} a1=Q {[%emt 00:00:11]} 53. f4 {[%clk
01:34:08]} {[%emt 00:00:05]} Qh8+ {[%clk 00:15:30]} {[%emt 00:00:15]} 54. Kg4
{[%clk 01:34:33]} {[%emt 00:00:05]} Qh3+ {[%clk 00:15:51]} {[%emt 00:00:09]} 55.
Kg5 {[%clk 01:34:59]} {[%emt 00:00:04]} Rg3+ {[%clk 00:16:16]} {[%emt
00:00:06]} 0-1

[Event "South Island Championships 2023"]
[Site "Oamaru, New Zealand"]
[Date "????.??.??"]
[Round "4.6"]
[White "Mayrhuber, Nikola"]
[Black "Mischke, Andreas"]
[Result "0-1"]
[TimeControl "90 + 30"]
[WhiteFideId "1637819"]
[BlackFideId "34649840"]
[WhiteElo "2059"]
[BlackElo "1680"]

1. d4 {[%clk 01:30:49]} {[%emt 00:00:10]} d5 {[%clk 01:30:52]} {[%emt
00:00:08]} 2. c4 {[%clk 01:31:14]} {[%emt 00:00:05]} e6 {[%clk 01:31:00]}
{[%emt 00:00:23]} 3. Nc3 {[%clk 01:31:39]} {[%emt 00:00:05]} c6 {[%clk
01:31:23]} {[%emt 00:00:07]} 4. g3 {[%clk 01:30:15]} {[%emt 00:01:54]} Nf6
{[%clk 01:29:22]} {[%emt 00:02:30]} 5. Bg2 {[%clk 01:30:40]} {[%emt 00:00:05]}
dxc4 {[%clk 01:28:37]} {[%emt 00:01:15]} 6. Nf3 {[%clk 01:30:48]} {[%emt
00:00:22]} Be7 {[%clk 01:26:42]} {[%emt 00:02:25]} 7. Ne5 {[%clk 01:30:25]}
{[%emt 00:00:54]} c5 {[%clk 01:24:57]} {[%emt 00:02:15]} 8. Qa4+ {[%clk
01:24:08]} {[%emt 00:06:47]} Nbd7 {[%clk 01:24:01]} {[%emt 00:01:26]} 9. dxc5
{[%clk 01:23:30]} {[%emt 00:01:08]} Bxc5 {[%clk 01:19:51]} {[%emt 00:04:40]} 10.
Nxc4 {[%clk 01:23:00]} {[%emt 00:00:59]} O-O {[%clk 01:18:42]} {[%emt
00:01:38]} 11. O-O {[%clk 01:23:06]} {[%emt 00:00:25]} Nb6 {[%clk 01:13:54]}
{[%emt 00:05:19]} 12. Qb5 {[%clk 01:19:35]} {[%emt 00:04:01]} Qc7 {[%clk
01:07:50]} {[%emt 00:06:33]} 13. Nxb6 {[%clk 01:08:04]} {[%emt 00:12:01]} axb6
{[%clk 00:49:29]} {[%emt 00:18:51]} 14. Bg5 {[%clk 01:01:31]} {[%emt 00:07:03]}
Ra5 {[%clk 00:47:21]} {[%emt 00:02:38]} 15. Qd3 {[%clk 00:48:38]} {[%emt
00:13:23]} Bxf2+ {[%clk 00:46:49]} {[%emt 00:01:02]} 16. Rxf2 {[%clk 00:49:02]}
{[%emt 00:00:06]} Rxg5 {[%clk 00:47:13]} {[%emt 00:00:07]} 17. Ne4 {[%clk
00:45:55]} {[%emt 00:03:37]} Nxe4 {[%clk 00:44:35]} {[%emt 00:03:07]} 18. Bxe4
{[%clk 00:46:18]} {[%emt 00:00:06]} h5 {[%clk 00:40:49]} {[%emt 00:04:17]} 19.
Raf1 {[%clk 00:42:44]} {[%emt 00:04:05]} h4 {[%clk 00:33:47]} {[%emt 00:07:32]}
20. Kg2 {[%clk 00:38:42]} {[%emt 00:04:32]} f5 {[%clk 00:31:13]} {[%emt
00:03:03]} 21. Qb3 {[%clk 00:24:43]} {[%emt 00:14:29]} Qe5 {[%clk 00:25:26]}
{[%emt 00:06:17]} 22. Rf4 {[%clk 00:23:15]} {[%emt 00:01:58]} hxg3 {[%clk
00:25:01]} {[%emt 00:00:56]} 23. hxg3 {[%clk 00:23:32]} {[%emt 00:00:12]} Rf6
{[%clk 00:16:47]} {[%emt 00:08:43]} 24. Qc4 {[%clk 00:11:59]} {[%emt 00:12:05]}
Bd7 {[%clk 00:15:06]} {[%emt 00:02:10]} 25. Bxb7 {[%clk 00:11:54]} {[%emt
00:00:35]} Bb5 {[%clk 00:09:05]} {[%emt 00:06:31]} 26. Qc8+ {[%clk 00:10:36]}
{[%emt 00:01:48]} Kf7 {[%clk 00:09:14]} {[%emt 00:00:22]} 27. Bf3 {[%clk
00:09:41]} {[%emt 00:01:25]} Rfg6 {[%clk 00:07:38]} {[%emt 00:02:06]} 28. Bc6
{[%clk 00:01:22]} {[%emt 00:08:48]} Rxg3+ {[%clk 00:06:15]} {[%emt 00:01:53]}
29. Kh2 {[%clk 00:01:28]} {[%emt 00:00:24]} Qxe2+ {[%clk 00:06:31]} {[%emt
00:00:14]} 30. R1f2 {[%clk 00:01:33]} {[%emt 00:00:26]} Qh5+ {[%clk 00:06:44]}
{[%emt 00:00:15]} 31. Rh4 {[%clk 00:02:01]} {[%emt 00:00:03]} Qxh4# {[%clk
00:06:34]} {[%emt 00:00:08]} 0-1

[Event "South Island Championships 2023"]
[Site "Oamaru, New Zealand"]
[Date "????.??.??"]
[Round "4.2"]
[White "Lukey, Stephen G"]
[Black "Liu, William Rui"]
[Result "1-0"]
[TimeControl "90 + 30"]
[WhiteFideId "4300386"]
[BlackFideId "4313593"]
[WhiteElo "2307"]
[BlackElo "2094"]

1. d4 {[%clk 01:30:19]} {[%emt 00:00:41]} Nf6 {[%clk 01:30:51]} {[%emt
00:00:10]} 2. c4 {[%clk 01:30:41]} {[%emt 00:00:08]} e6 {[%clk 01:31:14]}
{[%emt 00:00:07]} 3. Nf3 {[%clk 01:30:53]} {[%emt 00:00:17]} d5 {[%clk
01:31:29]} {[%emt 00:00:16]} 4. g3 {[%clk 01:30:53]} {[%emt 00:00:30]} Bb4+
{[%clk 01:31:40]} {[%emt 00:00:19]} 5. Bd2 {[%clk 01:31:14]} {[%emt 00:00:09]}
Be7 {[%clk 01:32:03]} {[%emt 00:00:08]} 6. Bg2 {[%clk 01:31:39]} {[%emt
00:00:04]} O-O {[%clk 01:32:18]} {[%emt 00:00:15]} 7. O-O {[%clk 01:32:02]}
{[%emt 00:00:07]} c6 {[%clk 01:32:37]} {[%emt 00:00:11]} 8. Qc2 {[%clk
01:30:42]} {[%emt 00:01:50]} Nbd7 {[%clk 01:32:16]} {[%emt 00:00:51]} 9. Rd1
{[%clk 01:30:46]} {[%emt 00:00:26]} b6 {[%clk 01:24:27]} {[%emt 00:08:19]} 10.
Ne5 {[%clk 01:22:32]} {[%emt 00:08:43]} Bb7 {[%clk 01:15:44]} {[%emt 00:09:14]}
11. Nc3 {[%clk 01:20:46]} {[%emt 00:02:15]} Rc8 {[%clk 01:13:16]} {[%emt
00:02:59]} 12. e4 {[%clk 01:18:52]} {[%emt 00:02:24]} dxe4 {[%clk 01:03:25]}
{[%emt 00:10:22]} 13. Nxe4 {[%clk 01:18:32]} {[%emt 00:00:49]} Nxe4 {[%clk
00:55:26]} {[%emt 00:08:29]} 14. Bxe4 {[%clk 01:18:20]} {[%emt 00:00:42]} Nf6
{[%clk 00:55:37]} {[%emt 00:00:19]} 15. Bg2 {[%clk 01:18:25]} {[%emt 00:00:24]}
Qc7 {[%clk 00:54:42]} {[%emt 00:01:26]} 16. Bf4 {[%clk 01:11:21]} {[%emt
00:07:33]} Bd6 {[%clk 00:49:18]} {[%emt 00:05:55]} 17. Qe2 {[%clk 01:11:41]}
{[%emt 00:00:10]} Qe7 {[%clk 00:43:47]} {[%emt 00:06:00]} 18. Rac1 {[%clk
01:08:36]} {[%emt 00:03:35]} c5 {[%clk 00:39:14]} {[%emt 00:05:04]} 19. dxc5
{[%clk 00:53:13]} {[%emt 00:15:52]} Bxc5 {[%clk 00:38:49]} {[%emt 00:00:55]} 20.
Bg5 {[%clk 00:37:49]} {[%emt 00:15:55]} Bxg2 {[%clk 00:36:48]} {[%emt
00:02:30]} 21. Kxg2 {[%clk 00:37:58]} {[%emt 00:00:21]} Rfd8 {[%clk 00:27:07]}
{[%emt 00:10:11]} 22. Qf3 {[%clk 00:31:30]} {[%emt 00:06:58]} Rxd1 {[%clk
00:21:11]} {[%emt 00:06:28]} 23. Rxd1 {[%clk 00:31:53]} {[%emt 00:00:06]} h6
{[%clk 00:21:22]} {[%emt 00:00:19]} 24. Rd7 {[%clk 00:29:53]} {[%emt 00:02:30]}
Nxd7 {[%clk 00:18:20]} {[%emt 00:03:32]} 25. Bxe7 {[%clk 00:30:17]} {[%emt
00:00:04]} Nxe5 {[%clk 00:18:46]} {[%emt 00:00:05]} 26. Qb7 {[%clk 00:30:00]}
{[%emt 00:00:47]} Re8 {[%clk 00:17:55]} {[%emt 00:01:22]} 27. Bxc5 {[%clk
00:30:19]} {[%emt 00:00:11]} bxc5 {[%clk 00:18:17]} {[%emt 00:00:08]} 28. Qxa7
{[%clk 00:29:48]} {[%emt 00:01:00]} Nxc4 {[%clk 00:18:26]} {[%emt 00:00:21]} 29.
Qxc5 {[%clk 00:29:41]} {[%emt 00:00:37]} 1-0